{"text_format":"3","workbook":"xlsx","n_sheets":2,"sheets":["list","data"],"not_rendered":{"external_links":1,"defined_names":8},"read":"whole","date_system":"1900"}

{"sheet":"list","index":0,"n_rows":63,"n_cols":9,"rows_kept":63}
[{"$f":"[1]Worksheet!B1","v":"Название ОУ"},{"$f":"[1]Worksheet!D1","v":"Фамилия"},"Класс","Класс участия","Первичный балл","Добавлено по итогам апелляций","Итоговый балл","Макс. Балл","Статус"]
[{"$f":"[1]Worksheet!B15","v":"МБОУ «СОШ №5» МО «ЛМР» РТ"},{"$f":"[1]Worksheet!D15","v":"Ильинных"},{"$f":"[1]Worksheet!J15","v":8},{"$f":"[1]Worksheet!J15","v":8},20,null,20,70]
[{"$f":"[1]Worksheet!B26","v":"МБОУ «Гимназия №11 г.Лениногорска»"},{"$f":"[1]Worksheet!D26","v":"Шарапова"},{"$f":"[1]Worksheet!J26","v":8},{"$f":"[1]Worksheet!J26","v":8},19,null,19,70]
[{"$f":"[1]Worksheet!B20","v":"МБОУ \"СОШ № 6 г.Лениногорска имени Героя России Д.Н. Исламова\""},{"$f":"[1]Worksheet!D20","v":"Ермолаев"},{"$f":"[1]Worksheet!J20","v":8},{"$f":"[1]Worksheet!J20","v":8},18,null,18,70]
[{"$f":"[1]Worksheet!B3","v":"МБОУ \"СОШ № 6 г.Лениногорска имени Героя России Д.Н. Исламова\""},{"$f":"[1]Worksheet!D3","v":"Астафьев"},{"$f":"[1]Worksheet!J3","v":8},{"$f":"[1]Worksheet!J3","v":8},17,null,17,70]
[{"$f":"[1]Worksheet!B4","v":"МБОУ \"СОШ № 6 г.Лениногорска имени Героя России Д.Н. Исламова\""},{"$f":"[1]Worksheet!D4","v":"Фаттахов"},{"$f":"[1]Worksheet!J4","v":8},{"$f":"[1]Worksheet!J4","v":8},17,null,17,70]
[{"$f":"[1]Worksheet!B32","v":"МБОУ «СОШ №7 г. Лениногорска»"},{"$f":"[1]Worksheet!D32","v":"Мальковский"},{"$f":"[1]Worksheet!J32","v":8},{"$f":"[1]Worksheet!J32","v":8},17,null,17,70]
[{"$f":"[1]Worksheet!B5","v":"МБОУ «СОШ №8 г. Лениногорска» МО \"ЛМР\" РТ"},{"$f":"[1]Worksheet!D5","v":"Артемьева"},{"$f":"[1]Worksheet!J5","v":8},{"$f":"[1]Worksheet!J5","v":8},16,null,16,70]
[{"$f":"[1]Worksheet!B7","v":"МБОУ \"СОШ № 6 г.Лениногорска имени Героя России Д.Н. Исламова\""},{"$f":"[1]Worksheet!D7","v":"Мошнина"},{"$f":"[1]Worksheet!J7","v":8},{"$f":"[1]Worksheet!J7","v":8},16,null,16,70]
[{"$f":"[1]Worksheet!B14","v":"Муниципальное бюджетное общеобразовательное учреждение \" Средняя общеобразовательная школа №2\" муниципального образования \"Лениногорский муниципальный район\" Республики Татарстан"},{"$f":"[1]Worksheet!D14","v":"Ермолаева"},{"$f":"[1]Worksheet!J14","v":8},{"$f":"[1]Worksheet!J14","v":8},16,null,16,70]
[{"$f":"[1]Worksheet!B30","v":"МБОУ «СОШ№10»"},{"$f":"[1]Worksheet!D30","v":"Салахутдинова"},{"$f":"[1]Worksheet!J30","v":8},{"$f":"[1]Worksheet!J30","v":8},16,null,16,70]
[{"$f":"[1]Worksheet!B2","v":"МБОУ «СОШ №5» МО «ЛМР» РТ"},{"$f":"[1]Worksheet!D2","v":"Саинова"},8,{"$f":"[1]Worksheet!J2","v":8},15,null,15,70]
[{"$f":"[1]Worksheet!B8","v":"МБОУ «СОШ №8 г. Лениногорска» МО \"ЛМР\" РТ"},{"$f":"[1]Worksheet!D8","v":"Ахметова"},{"$f":"[1]Worksheet!J8","v":8},{"$f":"[1]Worksheet!J8","v":8},15,null,15,70]
[{"$f":"[1]Worksheet!B17","v":"МБОУ \"СОШ № 6 г.Лениногорска имени Героя России Д.Н. Исламова\""},{"$f":"[1]Worksheet!D17","v":"Шакирова"},{"$f":"[1]Worksheet!J17","v":8},{"$f":"[1]Worksheet!J17","v":8},15,null,15,70]
[{"$f":"[1]Worksheet!B22","v":"Муниципальное бюджетное общеобразовательное учреждение \" Средняя общеобразовательная школа №2\" муниципального образования \"Лениногорский муниципальный район\" Республики Татарстан"},{"$f":"[1]Worksheet!D22","v":"Крюкова"},{"$f":"[1]Worksheet!J22","v":8},{"$f":"[1]Worksheet!J22","v":8},15,null,15,70]
[{"$f":"[1]Worksheet!B35","v":"Муниципальное бюджетное общеобразовательное учреждение \" Средняя общеобразовательная школа №2\" муниципального образования \"Лениногорский муниципальный район\" Республики Татарстан"},{"$f":"[1]Worksheet!D35","v":"Поляев"},{"$f":"[1]Worksheet!J35","v":8},{"$f":"[1]Worksheet!J35","v":8},15,null,15,70]
[{"$f":"[1]Worksheet!B37","v":"МБОУ лицей № 12"},{"$f":"[1]Worksheet!D37","v":"Вильданова"},{"$f":"[1]Worksheet!J37","v":8},{"$f":"[1]Worksheet!J37","v":8},15,null,15,70]
[{"$f":"[1]Worksheet!B13","v":"МБОУ «СОШ №8 г. Лениногорска» МО \"ЛМР\" РТ"},{"$f":"[1]Worksheet!D13","v":"Коршунова"},{"$f":"[1]Worksheet!J13","v":8},{"$f":"[1]Worksheet!J13","v":8},14,null,14,70]
[{"$f":"[1]Worksheet!B16","v":"МБОУ \"СОШ № 6 г.Лениногорска имени Героя России Д.Н. Исламова\""},{"$f":"[1]Worksheet!D16","v":"Канзафаров"},{"$f":"[1]Worksheet!J16","v":8},{"$f":"[1]Worksheet!J16","v":8},14,null,14,70]
[{"$f":"[1]Worksheet!B33","v":"МБОУ «СОШ №7 г. Лениногорска»"},{"$f":"[1]Worksheet!D33","v":"Шандинов"},{"$f":"[1]Worksheet!J33","v":8},{"$f":"[1]Worksheet!J33","v":8},14,null,14,70]
[{"$f":"[1]Worksheet!B39","v":"Муниципальное бюджетное общеобразовательное учреждение \" Средняя общеобразовательная школа №2\" муниципального образования \"Лениногорский муниципальный район\" Республики Татарстан"},{"$f":"[1]Worksheet!D39","v":"Текоцкая"},{"$f":"[1]Worksheet!J39","v":8},{"$f":"[1]Worksheet!J39","v":8},14,null,14,70]
[{"$f":"[1]Worksheet!B6","v":"МБОУ «СОШ №8 г. Лениногорска» МО \"ЛМР\" РТ"},{"$f":"[1]Worksheet!D6","v":"Гибадуллина"},{"$f":"[1]Worksheet!J6","v":8},{"$f":"[1]Worksheet!J6","v":8},12,null,12,70]
[{"$f":"[1]Worksheet!B11","v":"МБОУ «СОШ№10»"},{"$f":"[1]Worksheet!D11","v":"Гаязутдинов"},{"$f":"[1]Worksheet!J11","v":8},{"$f":"[1]Worksheet!J11","v":8},12,null,12,70]
[{"$f":"[1]Worksheet!B12","v":"МБОУ «СОШ №7 г. Лениногорска»"},{"$f":"[1]Worksheet!D12","v":"Каримов"},{"$f":"[1]Worksheet!J12","v":8},{"$f":"[1]Worksheet!J12","v":8},12,null,12,70]
[{"$f":"[1]Worksheet!B31","v":"Муниципальное бюджетное общеобразовательное учреждение \" Средняя общеобразовательная школа №2\" муниципального образования \"Лениногорский муниципальный район\" Республики Татарстан"},{"$f":"[1]Worksheet!D31","v":"Зиатдинова"},{"$f":"[1]Worksheet!J31","v":8},{"$f":"[1]Worksheet!J31","v":8},12,null,12,70]
[{"$f":"[1]Worksheet!B34","v":"Муниципальное бюджетное общеобразовательное учреждение \" Средняя общеобразовательная школа №2\" муниципального образования \"Лениногорский муниципальный район\" Республики Татарстан"},{"$f":"[1]Worksheet!D34","v":"Афанасьева"},{"$f":"[1]Worksheet!J34","v":8},{"$f":"[1]Worksheet!J34","v":8},12,null,12,70]
[{"$f":"[1]Worksheet!B36","v":"МБОУ лицей № 12"},{"$f":"[1]Worksheet!D36","v":"Фролова"},{"$f":"[1]Worksheet!J36","v":8},{"$f":"[1]Worksheet!J36","v":8},12,null,12,70]
[{"$f":"[1]Worksheet!B18","v":"МБОУ «СОШ№10»"},{"$f":"[1]Worksheet!D18","v":"Хамидуллина"},{"$f":"[1]Worksheet!J18","v":8},{"$f":"[1]Worksheet!J18","v":8},10,null,10,70]
[{"$f":"[1]Worksheet!B19","v":"Муниципальное бюджетное общеобразовательное учреждение \" Средняя общеобразовательная школа №2\" муниципального образования \"Лениногорский муниципальный район\" Республики Татарстан"},{"$f":"[1]Worksheet!D19","v":"Латыпова "},{"$f":"[1]Worksheet!J19","v":8},{"$f":"[1]Worksheet!J19","v":8},10,null,10,70]
[{"$f":"[1]Worksheet!B23","v":"МБОУ «СОШ №4»"},{"$f":"[1]Worksheet!D23","v":"Рудакова"},{"$f":"[1]Worksheet!J23","v":8},{"$f":"[1]Worksheet!J23","v":8},10,null,10,70]
[{"$f":"[1]Worksheet!B25","v":"МБОУ \"СОШ № 6 г.Лениногорска имени Героя России Д.Н. Исламова\""},{"$f":"[1]Worksheet!D25","v":"Ясавиева"},{"$f":"[1]Worksheet!J25","v":8},{"$f":"[1]Worksheet!J25","v":8},10,null,10,70]
[{"$f":"[1]Worksheet!B24","v":"МБОУ «СОШ №4»"},{"$f":"[1]Worksheet!D24","v":"Туйкина"},{"$f":"[1]Worksheet!J24","v":8},{"$f":"[1]Worksheet!J24","v":8},5,null,5,70]
[{"$f":"[1]Worksheet!B47","v":"Муниципальное бюджетное общеобразовательное учреждение \" Средняя общеобразовательная школа №2\" муниципального образования \"Лениногорский муниципальный район\" Республики Татарстан"},{"$f":"[1]Worksheet!D47","v":"Лепендина"},9,9,14,null,14,93]
[{"$f":"[1]Worksheet!B51","v":"МБОУ «СОШ №7 г. Лениногорска»"},{"$f":"[1]Worksheet!D51","v":"Муртазин"},9,9,14,null,14,93]
[{"$f":"[1]Worksheet!B41","v":"МБОУ \"СОШ № 6 г.Лениногорска имени Героя России Д.Н. Исламова\""},{"$f":"[1]Worksheet!D41","v":"Заидова"},9,9,10,null,10,93]
[{"$f":"[1]Worksheet!B42","v":"МБОУ \"СОШ № 6 г.Лениногорска имени Героя России Д.Н. Исламова\""},{"$f":"[1]Worksheet!D42","v":"Кирилова"},9,9,10,null,10,93]
[{"$f":"[1]Worksheet!B43","v":"МБОУ \"СОШ № 6 г.Лениногорска имени Героя России Д.Н. Исламова\""},{"$f":"[1]Worksheet!D43","v":"Газизов"},9,9,10,null,10,93]
[{"$f":"[1]Worksheet!B44","v":"МБОУ \"СОШ № 6 г.Лениногорска имени Героя России Д.Н. Исламова\""},{"$f":"[1]Worksheet!D44","v":"Закирова"},9,9,10,null,10,93]
[{"$f":"[1]Worksheet!B45","v":"МБОУ \"СОШ № 6 г.Лениногорска имени Героя России Д.Н. Исламова\""},{"$f":"[1]Worksheet!D45","v":"Сафин"},9,9,10,null,10,93]
[{"$f":"[1]Worksheet!B46","v":"МБОУ \"СОШ № 6 г.Лениногорска имени Героя России Д.Н. Исламова\""},{"$f":"[1]Worksheet!D46","v":"Баганова"},9,9,10,null,10,93]
[{"$f":"[1]Worksheet!B48","v":"МБОУ «СОШ №5» МО «ЛМР» РТ"},{"$f":"[1]Worksheet!D48","v":"Костицина"},9,9,10,null,10,93]
[{"$f":"[1]Worksheet!B50","v":"МБОУ «СОШ№10»"},{"$f":"[1]Worksheet!D50","v":"Муртазина"},9,9,10,null,10,93]
[{"$f":"[1]Worksheet!B57","v":"Муниципальное бюджетное общеобразовательное учреждение \" Средняя общеобразовательная школа №2\" муниципального образования \"Лениногорский муниципальный район\" Республики Татарстан"},{"$f":"[1]Worksheet!D57","v":"Минязев"},10,10,32,null,32,60,"призер"]
[{"$f":"[1]Worksheet!B59","v":"МБОУ «Тимяшевская СОШ»"},{"$f":"[1]Worksheet!D59","v":"Габидуллин"},10,10,22,null,22,60]
[{"$f":"[1]Worksheet!B60","v":"Муниципальное бюджетное общеобразовательное учреждение \" Средняя общеобразовательная школа №2\" муниципального образования \"Лениногорский муниципальный район\" Республики Татарстан"},{"$f":"[1]Worksheet!D60","v":"Хуснутдинов"},10,10,20,null,20,60]
[{"$f":"[1]Worksheet!B54","v":"МБОУ \"СОШ № 6 г.Лениногорска имени Героя России Д.Н. Исламова\""},{"$f":"[1]Worksheet!D54","v":"Шереметьева"},10,10,14,null,14,60]
[{"$f":"[1]Worksheet!B56","v":"МБОУ «СОШ №7 г. Лениногорска»"},{"$f":"[1]Worksheet!D56","v":"Гиниятуллина"},10,10,11,null,11,60]
[{"$f":"[1]Worksheet!B52","v":"МБОУ \"СОШ № 6 г.Лениногорска имени Героя России Д.Н. Исламова\""},{"$f":"[1]Worksheet!D52","v":"Каримова"},10,10,10,null,10,60]
[{"$f":"[1]Worksheet!B55","v":"Муниципальное бюджетное общеобразовательное учреждение \" Средняя общеобразовательная школа №2\" муниципального образования \"Лениногорский муниципальный район\" Республики Татарстан"},{"$f":"[1]Worksheet!D55","v":"Махъянов"},10,10,10,null,10,60]
[{"$f":"[1]Worksheet!B58","v":"Муниципальное бюджетное общеобразовательное учреждение \" Средняя общеобразовательная школа №2\" муниципального образования \"Лениногорский муниципальный район\" Республики Татарстан"},{"$f":"[1]Worksheet!D58","v":"Макарова "},10,10,10,null,10,60]
[{"$f":"[1]Worksheet!B61","v":"МБОУ \"СОШ № 6 г.Лениногорска имени Героя России Д.Н. Исламова\""},{"$f":"[1]Worksheet!D61","v":"Рафагатдинова"},10,10,10,null,10,60]
[{"$f":"[1]Worksheet!B62","v":"МБОУ «СОШ №5» МО «ЛМР» РТ"},{"$f":"[1]Worksheet!D62","v":"Сагдиева"},10,10,10,null,10,60]
[{"$f":"[1]Worksheet!B72","v":"МБОУ «СОШ №7 г. Лениногорска»"},{"$f":"[1]Worksheet!D72","v":"Бочаров"},11,11,34,null,34,67,"призер"]
[{"$f":"[1]Worksheet!B74","v":"МБОУ «Шугуровская СОШ им.В.П.Чкалова» МО \"Лениногорский муниципальный район\" РТ"},{"$f":"[1]Worksheet!D74","v":"Бадыков"},11,11,19,null,19,67]
[{"$f":"[1]Worksheet!B70","v":"МБОУ «СОШ №4»"},{"$f":"[1]Worksheet!D70","v":"Носов"},11,11,17,null,17,67]
[{"$f":"[1]Worksheet!B73","v":"МБОУ «СОШ№10»"},{"$f":"[1]Worksheet!D73","v":"Степанова"},11,11,15,null,15,67]
[{"$f":"[1]Worksheet!B71","v":"МБОУ \"СОШ № 6 г.Лениногорска имени Героя России Д.Н. Исламова\""},{"$f":"[1]Worksheet!D71","v":"Радаев"},11,11,14,null,14,67]
[{"$f":"[1]Worksheet!B64","v":"МБОУ \"СОШ № 6 г.Лениногорска имени Героя России Д.Н. Исламова\""},{"$f":"[1]Worksheet!D64","v":"Ганиев"},11,11,13,null,13,67]
[{"$f":"[1]Worksheet!B65","v":"Муниципальное бюджетное общеобразовательное учреждение \" Средняя общеобразовательная школа №2\" муниципального образования \"Лениногорский муниципальный район\" Республики Татарстан"},{"$f":"[1]Worksheet!D65","v":"Копылова"},11,11,13,null,13,67]
[{"$f":"[1]Worksheet!B66","v":"МБОУ «СОШ№10»"},{"$f":"[1]Worksheet!D66","v":"Скотникова"},11,11,12,null,12,67]
[{"$f":"[1]Worksheet!B63","v":"Муниципальное бюджетное общеобразовательное учреждение \" Средняя общеобразовательная школа №2\" муниципального образования \"Лениногорский муниципальный район\" Республики Татарстан"},{"$f":"[1]Worksheet!D63","v":"Сергушова"},11,11,10,null,10,67]
[{"$f":"[1]Worksheet!B67","v":"МБОУ «СОШ №7 г. Лениногорска»"},{"$f":"[1]Worksheet!D67","v":"Залялиев"},11,11,10,null,10,67]
[{"$f":"[1]Worksheet!B68","v":"МБОУ «СОШ№10»"},{"$f":"[1]Worksheet!D68","v":"Рахматуллина"},11,11,10,null,10,67]

{"sheet":"data","index":1,"n_rows":25,"n_cols":10,"rows_kept":25}
[{"$nulls":6},"1 - Техника, технология и техническое творчество","2 - Культура дома, дизайн и технологии","3 - Робототехника","4 - Информационная безопасность"]
["1 - Техника, технологии и техническое творчество","1.1  Практика по ручной деревообработке",{"$nulls":4},"1.1 Практика по ручной деревообработке","2.1 Ручная обработка швейного изделия или узла","3.1 Робототехника","4.1 Не предусмотрена"]
["2 - Культура дома, дизайн и технологии","1.2 Практика по механической деревообработке",{"$nulls":4},"1.2 Практика по механической деревообработке","2.2 Механическая обработка швейного изделия или узла + Моделирование"]
["3 - Робототехника","1.3 Практика по ручной металлообработке",{"$nulls":4},"1.3 Практика по ручной металлообработке","2.3 Обработка швейного изделия или узла на швейно-вышивальном оборудовании + Моделирование"]
["4 - Информационная безопасность","1.4 Практика по механической металлообработке",{"$nulls":4},"1.4 Практика по механической металлообработке","2.4 3D-моделирование и печать"]
[null,"1.5 Электрорадиотехника",{"$nulls":4},"1.5 Электрорадиотехника","2.5 Практика по работе на лазерно-гравировальном станке"]
[null,"1.6 3D-моделирование и печать",{"$nulls":4},"1.6 3D-моделирование и печать","2.6 Промышленный дизайн"]
[null,"1.7 Практика по работе на лазерно-гравировальном станке",{"$nulls":4},"1.7 Практика по работе на лазерно-гравировальном станке"]
[null,"1.8 Промышленный дизайн",{"$nulls":4},"1.8 Промышленный дизайн"]
[null,"2.1 Ручная обработка швейного изделия или узла"]
[null,"2.2 Механическая обработка швейного изделия или узла + Моделирование"]
[null,"2.3 Обработка швейного изделия или узла на швейно-вышивальном оборудовании + Моделирование"]
[null,"2.4 3D-моделирование и печать"]
[null,"2.5 Практика по работе на лазерно-гравировальном станке"]
[null,"2.6 Промышленный дизайн"]
[null,"3.1 Робототехника"]
[null,"4.1 Не предусмотрена"]
[]
[]
[]
[]
[]
["участник"]
["призер",null,"да","да",null,"м"]
["победитель",null,null,"нет",null,"ж"]